[Event "Titled Tuesday Blitz August 15 Late 2023"]
[White "Remizov, Yaroslav"]
[Black "Santos Flores, Alberto"]
[WhiteFideId "34134015"]
[BlackFideId "3601234"]
[WhiteElo "2844"]
[BlackElo "2533"]
[Result "1-0"]
[Round "2"]
[TimeControl "180+1"]
[Date "2023.08.15"]
[WhiteClock "0:00:13"]
[BlackClock "0:00:00"]
[Board "39"]

1. Nf3 {[%clk 0:03:00]}  d5 {[%clk 0:02:59]} 2. c4 {[%clk 0:03:00]}  c6 {[%clk 0:02:59]} 3. g3 {[%clk 0:02:59]}  Nf6 {[%clk 0:02:59]} 4. Bg2 {[%clk 0:02:59]}  Bf5 {[%clk 0:02:59]} 5. Qb3 {[%clk 0:02:59]}  Qb6 {[%clk 0:02:59]} 6. d3 {[%clk 0:02:59]}  e6 {[%clk 0:02:50]} 7. Be3 {[%clk 0:02:58]}  Qxb3 {[%clk 0:02:45]} 8. axb3 {[%clk 0:02:59]}  a6 {[%clk 0:02:46]} 9. Nh4 {[%clk 0:02:58]}  Bg6 {[%clk 0:02:43]} 10. O-O {[%clk 0:02:50]}  Nbd7 {[%clk 0:02:43]} 11. h3 {[%clk 0:02:44]}  Be7 {[%clk 0:02:30]} 12. Nc3 {[%clk 0:02:39]}  O-O {[%clk 0:02:29]} 13. f4 {[%clk 0:02:24]}  Ne8 {[%clk 0:01:41]} 14. Nxg6 {[%clk 0:02:04]}  hxg6 {[%clk 0:01:42]} 15. Bf2 {[%clk 0:02:04]}  Nef6 {[%clk 0:01:41]} 16. e4 {[%clk 0:02:02]}  Nc5 {[%clk 0:01:36]} 17. exd5 {[%clk 0:01:46]}  exd5 {[%clk 0:01:32]} 18. cxd5 {[%clk 0:01:46]}  cxd5 {[%clk 0:01:10]} 19. Nxd5 {[%clk 0:01:46]}  Nxd5 {[%clk 0:01:10]} 20. Bxd5 {[%clk 0:01:47]}  Nxd3 {[%clk 0:01:10]} 21. Bb6 {[%clk 0:01:33]}  Bc5+ {[%clk 0:01:05]} 22. Bxc5 {[%clk 0:01:32]}  Nxc5 {[%clk 0:01:06]} 23. Rfd1 {[%clk 0:01:27]}  Rad8 {[%clk 0:01:00]} 24. b4 {[%clk 0:01:25]}  Ne6 {[%clk 0:00:54]} 25. Bxb7 {[%clk 0:01:24]}  Rb8 {[%clk 0:00:53]} 26. Rd7 {[%clk 0:01:22]}  Nd8 {[%clk 0:00:47]} 27. Bxa6 {[%clk 0:01:16]}  Rxb4 {[%clk 0:00:47]} 28. Ra2 {[%clk 0:01:10]}  Ne6 {[%clk 0:00:47]} 29. Rb7 {[%clk 0:00:59]}  Rb8 {[%clk 0:00:40]} 30. Rxb8+ {[%clk 0:00:57]}  Rxb8 {[%clk 0:00:41]} 31. Bc4 {[%clk 0:00:57]}  Nc5 {[%clk 0:00:38]} 32. b3 {[%clk 0:00:43]}  Rb7 {[%clk 0:00:34]} 33. Ra3 {[%clk 0:00:40]}  Kh7 {[%clk 0:00:28]} 34. Kg2 {[%clk 0:00:39]}  f6 {[%clk 0:00:27]} 35. Kf3 {[%clk 0:00:39]}  g5 {[%clk 0:00:25]} 36. fxg5 {[%clk 0:00:34]}  fxg5 {[%clk 0:00:26]} 37. Ke3 {[%clk 0:00:34]}  Nd7 {[%clk 0:00:24]} 38. Kd4 {[%clk 0:00:33]}  Kh6 {[%clk 0:00:19]} 39. Ra6+ {[%clk 0:00:31]}  g6 {[%clk 0:00:14]} 40. Bd3 {[%clk 0:00:29]}  Rxb3 {[%clk 0:00:11]} 41. Rxg6+ {[%clk 0:00:26]}  Kh5 {[%clk 0:00:10]} 42. Rd6 {[%clk 0:00:26]}  Nf8 {[%clk 0:00:08]} 43. Be2+ {[%clk 0:00:23]}  g4 {[%clk 0:00:07]} 44. Rf6 {[%clk 0:00:12]}  Rxg3 {[%clk 0:00:05]} 45. Bxg4+ {[%clk 0:00:12]}  Rxg4+ {[%clk 0:00:01]} 46. hxg4+ {[%clk 0:00:13]}  Kxg4 {[%clk 0:00:00]} 47. Rxf8 {[%clk 0:00:13]} 1-0


[Site "https://www.chess.com"]

[Event "Titled Tuesday Blitz August 15 Late 2023"]
[White "Pakleza, Zbigniew"]
[Black "Urbina Perez, Juan Antonio"]
[WhiteFideId "1119290"]
[BlackFideId "2217368"]
[WhiteElo "2825"]
[BlackElo "2528"]
[Result "1-0"]
[Round "2"]
[TimeControl "180+1"]
[Date "2023.08.15"]
[WhiteClock "0:00:50"]
[BlackClock "0:01:14"]
[Board "42"]

1. d4 {[%clk 0:03:00]}  d5 {[%clk 0:02:54]} 2. Bf4 {[%clk 0:03:00]}  c5 {[%clk 0:02:53]} 3. c3 {[%clk 0:03:00]}  cxd4 {[%clk 0:02:53]} 4. cxd4 {[%clk 0:03:01]}  Nc6 {[%clk 0:02:53]} 5. e3 {[%clk 0:03:01]}  Nf6 {[%clk 0:02:54]} 6. Nc3 {[%clk 0:03:01]}  a6 {[%clk 0:02:54]} 7. Nf3 {[%clk 0:02:51]}  Bg4 {[%clk 0:02:53]} 8. Bd3 {[%clk 0:02:51]}  e6 {[%clk 0:02:48]} 9. Qb3 {[%clk 0:02:51]}  Ra7 {[%clk 0:02:47]} 10. Ne5 {[%clk 0:02:50]}  Nxe5 {[%clk 0:02:44]} 11. Bxe5 {[%clk 0:02:42]}  Bd6 {[%clk 0:02:36]} 12. Qa4+ {[%clk 0:02:34]}  Ke7 {[%clk 0:02:30]} 13. Nb5 {[%clk 0:02:10]}  axb5 {[%clk 0:02:14]} 14. Qxa7 {[%clk 0:02:08]}  Bxe5 {[%clk 0:02:04]} 15. dxe5 {[%clk 0:02:09]}  Nd7 {[%clk 0:02:04]} 16. Qd4 {[%clk 0:01:25]}  Qa5+ {[%clk 0:01:53]} 17. b4 {[%clk 0:01:21]}  Qa3 {[%clk 0:01:48]} 18. O-O {[%clk 0:01:13]}  h5 {[%clk 0:01:47]} 19. h3 {[%clk 0:01:02]}  Bf5 {[%clk 0:01:46]} 20. Bxf5 {[%clk 0:01:01]}  exf5 {[%clk 0:01:47]} 21. Qxd5 {[%clk 0:00:59]}  Qxb4 {[%clk 0:01:38]} 22. Rab1 {[%clk 0:00:57]}  Qc4 {[%clk 0:01:27]} 23. Qd6+ {[%clk 0:00:52]}  Ke8 {[%clk 0:01:14]} 24. Rfc1 {[%clk 0:00:50]} 1-0


[Site "https://www.chess.com"]

[Event "Titled Tuesday Blitz August 15 Late 2023"]
[White "subham777"]
[Black "Maksimovic, Bojan"]
[BlackFideId "14408120"]
[WhiteElo "2528"]
[BlackElo "2810"]
[Result "1-0"]
[Round "2"]
[TimeControl "180+1"]
[Date "2023.08.15"]
[WhiteClock "0:01:02"]
[BlackClock "0:00:00"]
[Board "43"]

1. e4 {[%clk 0:03:00]}  g6 {[%clk 0:03:00]} 2. d4 {[%clk 0:03:00]}  Nf6 {[%clk 0:03:01]} 3. Bd3 {[%clk 0:02:51]}  c5 {[%clk 0:02:59]} 4. c3 {[%clk 0:02:49]}  cxd4 {[%clk 0:02:59]} 5. cxd4 {[%clk 0:02:46]}  Nc6 {[%clk 0:02:59]} 6. Nf3 {[%clk 0:02:46]}  Bg7 {[%clk 0:02:59]} 7. Nc3 {[%clk 0:02:45]}  O-O {[%clk 0:02:56]} 8. O-O {[%clk 0:02:36]}  d6 {[%clk 0:02:57]} 9. Re1 {[%clk 0:02:30]}  Bg4 {[%clk 0:02:56]} 10. Be3 {[%clk 0:02:26]}  e5 {[%clk 0:02:57]} 11. d5 {[%clk 0:02:26]}  Nd4 {[%clk 0:02:57]} 12. Be2 {[%clk 0:02:22]}  Nxe2+ {[%clk 0:02:56]} 13. Qxe2 {[%clk 0:02:21]}  Nh5 {[%clk 0:02:56]} 14. h3 {[%clk 0:02:18]}  Bd7 {[%clk 0:02:57]} 15. Rac1 {[%clk 0:02:06]}  Nf4 {[%clk 0:02:56]} 16. Bxf4 {[%clk 0:02:05]}  exf4 {[%clk 0:02:57]} 17. a3 {[%clk 0:01:56]}  Qb6 {[%clk 0:02:57]} 18. e5 {[%clk 0:01:32]}  Rfe8 {[%clk 0:02:56]} 19. e6 {[%clk 0:01:28]}  fxe6 {[%clk 0:02:57]} 20. dxe6 {[%clk 0:01:28]}  Rxe6 {[%clk 0:02:58]} 21. Qc4 {[%clk 0:01:23]}  Re8 {[%clk 0:02:49]} 22. Ng5 {[%clk 0:01:18]}  d5 {[%clk 0:02:29]} 23. Qxd5 {[%clk 0:01:12]}  Qxb2 {[%clk 0:02:28]} 24. Nxe6 {[%clk 0:01:04]}  Bxe6 {[%clk 0:00:00]} 25. Rxe6 {[%clk 0:01:02]} 1-0


[Site "https://www.chess.com"]

[Event "Titled Tuesday Blitz August 15 Late 2023"]
[White "Yanchenko, Roman"]
[Black "Morgunov, Marc"]
[WhiteFideId "4137329"]
[BlackFideId "1640305"]
[WhiteElo "2793"]
[BlackElo "2524"]
[Result "1-0"]
[Round "2"]
[TimeControl "180+1"]
[Date "2023.08.15"]
[WhiteClock "0:00:10"]
[BlackClock "0:00:03"]
[Board "46"]

1. d4 {[%clk 0:03:00]}  Nf6 {[%clk 0:02:58]} 2. Nf3 {[%clk 0:03:00]}  g6 {[%clk 0:02:57]} 3. Bf4 {[%clk 0:03:00]}  Bg7 {[%clk 0:02:57]} 4. e3 {[%clk 0:03:01]}  O-O {[%clk 0:02:58]} 5. Be2 {[%clk 0:03:01]}  d6 {[%clk 0:02:58]} 6. h3 {[%clk 0:03:01]}  c5 {[%clk 0:02:59]} 7. O-O {[%clk 0:03:00]}  Qb6 {[%clk 0:02:56]} 8. Nc3 {[%clk 0:03:00]}  Nc6 {[%clk 0:02:38]} 9. a3 {[%clk 0:02:56]}  a6 {[%clk 0:02:14]} 10. dxc5 {[%clk 0:02:12]}  Qxc5 {[%clk 0:02:15]} 11. Na4 {[%clk 0:02:00]}  Qa7 {[%clk 0:02:14]} 12. c4 {[%clk 0:01:58]}  Bd7 {[%clk 0:02:06]} 13. Nc3 {[%clk 0:01:56]}  Rac8 {[%clk 0:01:53]} 14. Rc1 {[%clk 0:01:55]}  Na5 {[%clk 0:01:47]} 15. b4 {[%clk 0:01:41]}  Nxc4 {[%clk 0:01:26]} 16. Bxc4 {[%clk 0:01:41]}  Rxc4 {[%clk 0:01:26]} 17. Nd5 {[%clk 0:01:42]}  Nxd5 {[%clk 0:01:22]} 18. Rxc4 {[%clk 0:01:41]}  Bb5 {[%clk 0:01:22]} 19. Qxd5 {[%clk 0:01:40]}  e6 {[%clk 0:01:23]} 20. Qxd6 {[%clk 0:01:23]}  Bxc4 {[%clk 0:01:22]} 21. Rc1 {[%clk 0:01:24]}  Bd5 {[%clk 0:01:21]} 22. Be5 {[%clk 0:01:18]}  Bxf3 {[%clk 0:01:14]} 23. Bxg7 {[%clk 0:01:17]}  Kxg7 {[%clk 0:01:14]} 24. gxf3 {[%clk 0:01:18]}  Qb8 {[%clk 0:00:55]} 25. Rc7 {[%clk 0:01:17]}  b5 {[%clk 0:00:50]} 26. Qf4 {[%clk 0:00:49]}  Qd8 {[%clk 0:00:41]} 27. Ra7 {[%clk 0:00:48]}  Qb6 {[%clk 0:00:38]} 28. Rd7 {[%clk 0:00:41]}  Qc6 {[%clk 0:00:38]} 29. Qd4+ {[%clk 0:00:35]}  Kg8 {[%clk 0:00:37]} 30. Kg2 {[%clk 0:00:34]}  e5 {[%clk 0:00:27]} 31. Qd6 {[%clk 0:00:33]}  Rc8 {[%clk 0:00:27]} 32. Qe7 {[%clk 0:00:30]}  Rf8 {[%clk 0:00:26]} 33. Rd6 {[%clk 0:00:29]}  Qc3 {[%clk 0:00:23]} 34. Rxa6 {[%clk 0:00:28]}  h5 {[%clk 0:00:19]} 35. Qd7 {[%clk 0:00:21]}  Qc4 {[%clk 0:00:16]} 36. Ra7 {[%clk 0:00:20]}  e4 {[%clk 0:00:16]} 37. f4 {[%clk 0:00:20]}  Qe2 {[%clk 0:00:15]} 38. Rc7 {[%clk 0:00:18]}  Qf3+ {[%clk 0:00:16]} 39. Kg1 {[%clk 0:00:18]}  Qe2 {[%clk 0:00:16]} 40. Rc5 {[%clk 0:00:13]}  Qe1+ {[%clk 0:00:15]} 41. Kg2 {[%clk 0:00:13]}  Qe2 {[%clk 0:00:12]} 42. Rxb5 {[%clk 0:00:12]}  Qf3+ {[%clk 0:00:07]} 43. Kg1 {[%clk 0:00:12]}  Kg7 {[%clk 0:00:06]} 44. Rg5 {[%clk 0:00:12]}  Ra8 {[%clk 0:00:03]} 45. f5 {[%clk 0:00:09]}  Rxa3 {[%clk 0:00:03]} 46. Rxg6+ {[%clk 0:00:10]}  Kf8 {[%clk 0:00:03]} 47. Qd8# {[%clk 0:00:10]} 1-0


[Site "https://www.chess.com"]

[Event "Titled Tuesday Blitz August 15 Late 2023"]
[White "Grinev, Valeriy"]
[Black "Troff, Kayden"]
[WhiteFideId "14117517"]
[BlackFideId "2047896"]
[WhiteElo "2524"]
[BlackElo "2786"]
[Result "1-0"]
[Round "2"]
[TimeControl "180+1"]
[Date "2023.08.15"]
[WhiteClock "0:02:05"]
[BlackClock "0:00:14"]
[Board "47"]

1. d4 {[%clk 0:03:00]}  Nf6 {[%clk 0:02:58]} 2. c4 {[%clk 0:03:01]}  g6 {[%clk 0:02:57]} 3. Nc3 {[%clk 0:03:01]}  d5 {[%clk 0:02:57]} 4. cxd5 {[%clk 0:03:01]}  Nxd5 {[%clk 0:02:58]} 5. e4 {[%clk 0:03:02]}  Nxc3 {[%clk 0:02:59]} 6. bxc3 {[%clk 0:03:03]}  Bg7 {[%clk 0:02:58]} 7. Nf3 {[%clk 0:03:03]}  c5 {[%clk 0:02:59]} 8. h3 {[%clk 0:03:04]}  O-O {[%clk 0:02:51]} 9. Be2 {[%clk 0:03:03]}  cxd4 {[%clk 0:02:37]} 10. cxd4 {[%clk 0:03:03]}  Nc6 {[%clk 0:02:37]} 11. Be3 {[%clk 0:03:01]}  Qa5+ {[%clk 0:02:35]} 12. Bd2 {[%clk 0:03:01]}  Qa3 {[%clk 0:02:16]} 13. d5 {[%clk 0:03:00]}  Nd4 {[%clk 0:02:15]} 14. Nxd4 {[%clk 0:02:56]}  Bxd4 {[%clk 0:02:16]} 15. O-O {[%clk 0:02:54]}  Bg7 {[%clk 0:02:15]} 16. Rb1 {[%clk 0:02:46]}  b6 {[%clk 0:02:15]} 17. Bb4 {[%clk 0:02:46]}  Qxa2 {[%clk 0:02:10]} 18. Bxe7 {[%clk 0:02:44]}  Re8 {[%clk 0:02:10]} 19. d6 {[%clk 0:02:37]}  Bd7 {[%clk 0:02:10]} 20. Rc1 {[%clk 0:02:37]}  Qe6 {[%clk 0:01:17]} 21. Bg4 {[%clk 0:02:35]}  f5 {[%clk 0:01:10]} 22. exf5 {[%clk 0:02:36]}  gxf5 {[%clk 0:01:01]} 23. Bf3 {[%clk 0:02:35]}  Kh8 {[%clk 0:00:59]} 24. Re1 {[%clk 0:02:31]}  Qg6 {[%clk 0:00:53]} 25. Rc7 {[%clk 0:02:25]}  Rad8 {[%clk 0:00:47]} 26. Bh5 {[%clk 0:02:15]}  Qh6 {[%clk 0:00:22]} 27. Bxe8 {[%clk 0:02:13]}  Rxe8 {[%clk 0:00:21]} 28. Rxd7 {[%clk 0:02:11]}  Rg8 {[%clk 0:00:18]} 29. Rd8 {[%clk 0:02:09]}  Bc3 {[%clk 0:00:17]} 30. Rxg8+ {[%clk 0:02:06]}  Kxg8 {[%clk 0:00:14]} 31. Qb3+ {[%clk 0:02:05]} 1-0


[Site "https://www.chess.com"]

[Event "Titled Tuesday Blitz August 15 Late 2023"]
[White "Janaszak, Dawid"]
[Black "Bazeev, German"]
[WhiteFideId "1119206"]
[BlackFideId "24119350"]
[WhiteElo "2518"]
[BlackElo "2772"]
[Result "0-1"]
[Round "2"]
[TimeControl "180+1"]
[Date "2023.08.15"]
[WhiteClock "0:00:00"]
[BlackClock "0:00:08"]
[Board "51"]

1. e4 {[%clk 0:03:00]}  c5 {[%clk 0:02:58]} 2. Nc3 {[%clk 0:03:00]}  Nc6 {[%clk 0:02:57]} 3. Bb5 {[%clk 0:02:59]}  g6 {[%clk 0:02:56]} 4. Bxc6 {[%clk 0:02:58]}  dxc6 {[%clk 0:02:57]} 5. d3 {[%clk 0:02:58]}  Bg7 {[%clk 0:02:58]} 6. Be3 {[%clk 0:02:58]}  c4 {[%clk 0:02:58]} 7. Nge2 {[%clk 0:02:44]}  cxd3 {[%clk 0:02:57]} 8. cxd3 {[%clk 0:02:45]}  Nf6 {[%clk 0:02:58]} 9. h3 {[%clk 0:02:41]}  e5 {[%clk 0:02:53]} 10. Qd2 {[%clk 0:02:38]}  O-O {[%clk 0:02:53]} 11. O-O {[%clk 0:02:35]}  Be6 {[%clk 0:02:52]} 12. Rfd1 {[%clk 0:02:31]}  Qe7 {[%clk 0:02:49]} 13. Bh6 {[%clk 0:02:29]}  Rfd8 {[%clk 0:02:49]} 14. Bxg7 {[%clk 0:02:29]}  Kxg7 {[%clk 0:02:50]} 15. d4 {[%clk 0:02:24]}  exd4 {[%clk 0:02:46]} 16. Nxd4 {[%clk 0:02:25]}  Bc4 {[%clk 0:02:10]} 17. Qe3 {[%clk 0:02:14]}  Nd7 {[%clk 0:02:00]} 18. Rac1 {[%clk 0:02:03]}  Ba6 {[%clk 0:01:58]} 19. f4 {[%clk 0:01:48]}  Nb6 {[%clk 0:01:42]} 20. e5 {[%clk 0:01:34]}  Nd5 {[%clk 0:01:32]} 21. Qg3 {[%clk 0:01:28]}  Kh8 {[%clk 0:01:28]} 22. Ne4 {[%clk 0:01:24]}  f6 {[%clk 0:01:12]} 23. Nd6 {[%clk 0:01:17]}  fxe5 {[%clk 0:01:07]} 24. fxe5 {[%clk 0:01:18]}  Rf8 {[%clk 0:01:07]} 25. Re1 {[%clk 0:01:13]}  Rf4 {[%clk 0:01:00]} 26. Rcd1 {[%clk 0:00:58]}  Raf8 {[%clk 0:00:58]} 27. Kh1 {[%clk 0:00:52]}  Bf1 {[%clk 0:00:49]} 28. Nf3 {[%clk 0:00:49]}  Bxg2+ {[%clk 0:00:48]} 29. Kxg2 {[%clk 0:00:48]}  Rxf3 {[%clk 0:00:49]} 30. Qxf3 {[%clk 0:00:45]}  Rxf3 {[%clk 0:00:50]} 31. Kxf3 {[%clk 0:00:46]}  Qf8+ {[%clk 0:00:48]} 32. Kg2 {[%clk 0:00:44]}  Qf4 {[%clk 0:00:41]} 33. e6 {[%clk 0:00:34]}  Ne3+ {[%clk 0:00:39]} 34. Rxe3 {[%clk 0:00:30]}  Qxe3 {[%clk 0:00:40]} 35. Nf7+ {[%clk 0:00:20]}  Kg7 {[%clk 0:00:40]} 36. Rd7 {[%clk 0:00:10]}  Kf6 {[%clk 0:00:33]} 37. Nd8 {[%clk 0:00:09]}  Qe4+ {[%clk 0:00:25]} 38. Kg1 {[%clk 0:00:09]}  Qb1+ {[%clk 0:00:22]} 39. Kg2 {[%clk 0:00:09]}  Qxb2+ {[%clk 0:00:22]} 40. Kg3 {[%clk 0:00:09]}  Qa3+ {[%clk 0:00:22]} 41. Kg2 {[%clk 0:00:08]}  Qxa2+ {[%clk 0:00:22]} 42. Kg3 {[%clk 0:00:08]}  Qa3+ {[%clk 0:00:22]} 43. Kg2 {[%clk 0:00:09]}  Qb2+ {[%clk 0:00:22]} 44. Kg3 {[%clk 0:00:09]}  Qe5+ {[%clk 0:00:22]} 45. Kg2 {[%clk 0:00:09]}  Qe4+ {[%clk 0:00:22]} 46. Kf2 {[%clk 0:00:09]}  b5 {[%clk 0:00:22]} 47. Rf7+ {[%clk 0:00:09]}  Kg5 {[%clk 0:00:22]} 48. e7 {[%clk 0:00:09]}  b4 {[%clk 0:00:20]} 49. Rf3 {[%clk 0:00:02]}  Qxe7 {[%clk 0:00:15]} 50. Nf7+ {[%clk 0:00:02]}  Kh5 {[%clk 0:00:14]} 51. Kg3 {[%clk 0:00:01]}  Qe1+ {[%clk 0:00:12]} 52. Kf4 {[%clk 0:00:01]}  b3 {[%clk 0:00:09]} 53. Ne5 {[%clk 0:00:02]}  Qd2+ {[%clk 0:00:07]} 54. Ke4 {[%clk 0:00:02]}  Qe2+ {[%clk 0:00:07]} 55. Re3 {[%clk 0:00:02]}  Qxe3+ {[%clk 0:00:07]} 56. Kxe3 {[%clk 0:00:00]}  b2 {[%clk 0:00:08]} 0-1


[Site "https://www.chess.com"]

[Event "Titled Tuesday Blitz August 15 Late 2023"]
[White "Badmatsyrenov, Oleg"]
[Black "Berezin, Viktor"]
[WhiteFideId "24115762"]
[BlackFideId "14107872"]
[WhiteElo "2764"]
[BlackElo "2518"]
[Result "1-0"]
[Round "2"]
[TimeControl "180+1"]
[Date "2023.08.15"]
[WhiteClock "0:01:07"]
[BlackClock "0:00:07"]
[Board "52"]

1. e4 {[%clk 0:03:00]}  c6 {[%clk 0:02:55]} 2. d4 {[%clk 0:03:00]}  d5 {[%clk 0:02:54]} 3. Nc3 {[%clk 0:03:01]}  dxe4 {[%clk 0:02:54]} 4. Bc4 {[%clk 0:03:01]}  Nf6 {[%clk 0:02:55]} 5. f3 {[%clk 0:03:02]}  e3 {[%clk 0:02:51]} 6. Bxe3 {[%clk 0:03:01]}  Bf5 {[%clk 0:02:46]} 7. g4 {[%clk 0:03:02]}  Bg6 {[%clk 0:02:45]} 8. Nge2 {[%clk 0:03:03]}  e6 {[%clk 0:02:45]} 9. Nf4 {[%clk 0:03:03]}  Nd5 {[%clk 0:02:40]} 10. Bxd5 {[%clk 0:03:02]}  cxd5 {[%clk 0:02:38]} 11. h4 {[%clk 0:03:02]}  f6 {[%clk 0:02:15]} 12. Nxg6 {[%clk 0:03:02]}  hxg6 {[%clk 0:02:15]} 13. Qd3 {[%clk 0:03:03]}  f5 {[%clk 0:02:08]} 14. O-O-O {[%clk 0:02:59]}  Nc6 {[%clk 0:02:05]} 15. Ne2 {[%clk 0:02:54]}  Rc8 {[%clk 0:01:56]} 16. Kb1 {[%clk 0:02:51]}  Bd6 {[%clk 0:01:43]} 17. Bg5 {[%clk 0:02:27]}  Qa5 {[%clk 0:01:40]} 18. c3 {[%clk 0:02:23]}  b5 {[%clk 0:01:40]} 19. Nf4 {[%clk 0:02:10]}  Bxf4 {[%clk 0:01:32]} 20. Bxf4 {[%clk 0:02:11]}  b4 {[%clk 0:01:33]} 21. c4 {[%clk 0:02:02]}  Kf7 {[%clk 0:01:22]} 22. c5 {[%clk 0:01:58]}  b3 {[%clk 0:01:14]} 23. a3 {[%clk 0:01:56]}  Qd8 {[%clk 0:00:56]} 24. Bg5 {[%clk 0:01:51]}  Qc7 {[%clk 0:00:52]} 25. h5 {[%clk 0:01:51]}  Rb8 {[%clk 0:00:23]} 26. hxg6+ {[%clk 0:01:35]}  Kxg6 {[%clk 0:00:24]} 27. Qe3 {[%clk 0:01:35]}  Kf7 {[%clk 0:00:20]} 28. Bf4 {[%clk 0:01:33]}  e5 {[%clk 0:00:16]} 29. dxe5 {[%clk 0:01:31]}  Qd7 {[%clk 0:00:16]} 30. e6+ {[%clk 0:01:28]}  Qxe6 {[%clk 0:00:17]} 31. Qxe6+ {[%clk 0:01:28]}  Kxe6 {[%clk 0:00:17]} 32. Bxb8 {[%clk 0:01:29]}  Rxb8 {[%clk 0:00:18]} 33. gxf5+ {[%clk 0:01:29]}  Kxf5 {[%clk 0:00:17]} 34. Rxd5+ {[%clk 0:01:30]}  Kf4 {[%clk 0:00:18]} 35. Rh4+ {[%clk 0:01:11]}  Kxf3 {[%clk 0:00:18]} 36. Rd3+ {[%clk 0:01:12]}  Ke2 {[%clk 0:00:17]} 37. Rc3 {[%clk 0:01:07]}  g5 {[%clk 0:00:07]} 38. Rh2+ {[%clk 0:01:07]} 1-0


[Site "https://www.chess.com"]

[Event "Titled Tuesday Blitz August 15 Late 2023"]
[White "Kushko, Dmitriy"]
[Black "RrainlessBobot"]
[WhiteFideId "14162261"]
[WhiteElo "2757"]
[BlackElo "2515"]
[Result "1/2-1/2"]
[Round "2"]
[TimeControl "180+1"]
[Date "2023.08.15"]
[WhiteClock "0:00:08"]
[BlackClock "0:00:06"]
[Board "53"]

1. Nf3 {[%clk 0:03:00]}  Nf6 {[%clk 0:02:58]} 2. g3 {[%clk 0:03:01]}  g6 {[%clk 0:02:58]} 3. Bg2 {[%clk 0:03:01]}  Bg7 {[%clk 0:02:58]} 4. d4 {[%clk 0:03:01]}  O-O {[%clk 0:02:59]} 5. O-O {[%clk 0:03:02]}  d6 {[%clk 0:02:59]} 6. Re1 {[%clk 0:03:01]}  c5 {[%clk 0:02:58]} 7. dxc5 {[%clk 0:03:01]}  dxc5 {[%clk 0:02:58]} 8. c3 {[%clk 0:03:01]}  Nc6 {[%clk 0:02:42]} 9. Qxd8 {[%clk 0:03:01]}  Rxd8 {[%clk 0:02:42]} 10. Be3 {[%clk 0:03:02]}  b6 {[%clk 0:02:42]} 11. Ne5 {[%clk 0:02:59]}  Nxe5 {[%clk 0:02:42]} 12. Bxa8 {[%clk 0:02:59]}  Nc4 {[%clk 0:02:42]} 13. Bc1 {[%clk 0:02:59]}  Bg4 {[%clk 0:02:25]} 14. Bf3 {[%clk 0:02:55]}  h5 {[%clk 0:01:48]} 15. b3 {[%clk 0:02:40]}  Bxf3 {[%clk 0:01:48]} 16. exf3 {[%clk 0:02:39]}  Ne5 {[%clk 0:01:49]} 17. Kg2 {[%clk 0:01:34]}  Nd3 {[%clk 0:01:49]} 18. Rf1 {[%clk 0:01:29]}  Nd5 {[%clk 0:01:33]} 19. Bd2 {[%clk 0:01:28]}  b5 {[%clk 0:01:27]} 20. a3 {[%clk 0:01:24]}  c4 {[%clk 0:01:21]} 21. bxc4 {[%clk 0:01:20]}  bxc4 {[%clk 0:01:21]} 22. a4 {[%clk 0:01:16]}  Nc5 {[%clk 0:01:09]} 23. Na3 {[%clk 0:01:12]}  Nb3 {[%clk 0:01:09]} 24. Ra2 {[%clk 0:01:09]}  Nxd2 {[%clk 0:01:10]} 25. Rxd2 {[%clk 0:01:05]}  Nf4+ {[%clk 0:01:10]} 26. gxf4 {[%clk 0:01:05]}  Rxd2 {[%clk 0:01:10]} 27. Nxc4 {[%clk 0:01:06]}  Ra2 {[%clk 0:01:02]} 28. a5 {[%clk 0:01:02]}  Bxc3 {[%clk 0:01:02]} 29. Rd1 {[%clk 0:00:56]}  Ra4 {[%clk 0:00:51]} 30. Rd8+ {[%clk 0:00:44]}  Kg7 {[%clk 0:00:51]} 31. Rc8 {[%clk 0:00:43]}  Bxa5 {[%clk 0:00:45]} 32. Nxa5 {[%clk 0:00:29]}  Rxa5 {[%clk 0:00:45]} 33. Rc7 {[%clk 0:00:29]}  e6 {[%clk 0:00:45]} 34. h4 {[%clk 0:00:28]}  Kf6 {[%clk 0:00:45]} 35. Kg3 {[%clk 0:00:28]}  Ra1 {[%clk 0:00:45]} 36. Rb7 {[%clk 0:00:28]}  a5 {[%clk 0:00:46]} 37. Ra7 {[%clk 0:00:28]}  a4 {[%clk 0:00:46]} 38. Ra5 {[%clk 0:00:28]}  a3 {[%clk 0:00:46]} 39. Kg2 {[%clk 0:00:28]}  Ke7 {[%clk 0:00:38]} 40. Ra7+ {[%clk 0:00:28]}  Kd6 {[%clk 0:00:38]} 41. Rxf7 {[%clk 0:00:28]}  Rb1 {[%clk 0:00:27]} 42. Ra7 {[%clk 0:00:28]}  Rb3 {[%clk 0:00:28]} 43. Ra6+ {[%clk 0:00:23]}  Kd5 {[%clk 0:00:27]} 44. Kg3 {[%clk 0:00:23]}  Rc3 {[%clk 0:00:23]} 45. f5 {[%clk 0:00:21]}  gxf5 {[%clk 0:00:19]} 46. Kf4 {[%clk 0:00:22]}  Kc5 {[%clk 0:00:16]} 47. Rxe6 {[%clk 0:00:20]}  Kb5 {[%clk 0:00:14]} 48. Re2 {[%clk 0:00:15]}  Rc4+ {[%clk 0:00:08]} 49. Kg5 {[%clk 0:00:13]}  Kb4 {[%clk 0:00:06]} 50. Kxh5 {[%clk 0:00:13]}  Rf4 {[%clk 0:00:06]} 51. Kg5 {[%clk 0:00:06]}  Rxf3 {[%clk 0:00:06]} 52. h5 {[%clk 0:00:07]}  Rh3 {[%clk 0:00:06]} 53. Kxf5 {[%clk 0:00:06]}  Rxh5+ {[%clk 0:00:06]} 54. Kg6 {[%clk 0:00:06]}  Rh2 {[%clk 0:00:07]} 55. Re4+ {[%clk 0:00:05]}  Kb3 {[%clk 0:00:07]} 56. f4 {[%clk 0:00:05]}  a2 {[%clk 0:00:08]} 57. Re1 {[%clk 0:00:05]}  Rb2 {[%clk 0:00:03]} 58. Ra1 {[%clk 0:00:04]}  Rb1 {[%clk 0:00:04]} 59. Rxa2 {[%clk 0:00:04]}  Kxa2 {[%clk 0:00:04]} 60. f5 {[%clk 0:00:05]}  Kb3 {[%clk 0:00:04]} 61. f6 {[%clk 0:00:06]}  Kc4 {[%clk 0:00:05]} 62. f7 {[%clk 0:00:07]}  Rf1 {[%clk 0:00:05]} 63. Kg7 {[%clk 0:00:07]}  Kd5 {[%clk 0:00:05]} 64. f8=Q {[%clk 0:00:07]}  Rxf8 {[%clk 0:00:06]} 65. Kxf8 {[%clk 0:00:08]} 1/2-1/2


[Site "https://www.chess.com"]